fUSD/lending_fUSD_20260606
["ID","MTS","AMOUNT","RATE_DAILY","PERIOD"]
[424273380,1780725041000,-450.4140981,0.00013698,2]
[424273381,1780725041000,-1000.0,0.00013699,2]
[424273378,1780725041000,-500.0,0.00013698,2]
[424273361,1780725041000,-500.0,0.00013698,2]
[424273379,1780725041000,-500.0,0.00013698,2]
[424273376,1780725041000,-500.0,0.00013698,2]
[424273377,1780725041000,-500.0,0.00013698,2]
[424273375,1780725041000,-500.0,0.00013698,2]
[424273369,1780725041000,-500.0,0.00013698,2]
[424273372,1780725041000,-500.0,0.00013698,2]
[424273373,1780725041000,-500.0,0.00013698,2]
[424273374,1780725041000,-500.0,0.00013698,2]
[424273371,1780725041000,-500.0,0.00013698,2]
[424273452,1780725042000,-500.0,0.00014,2]
[424273453,1780725042000,-500.0,0.00014,2]
[424273449,1780725042000,-500.0,0.00014,2]
[424273450,1780725042000,-500.0,0.00014,2]
[424273451,1780725042000,-500.0,0.00014,2]
[424273444,1780725042000,-500.0,0.00014,2]
[424273447,1780725042000,-500.0,0.00014,2]
[424273446,1780725042000,-500.0,0.00014,2]
[424273442,1780725042000,-500.0,0.00014,2]
[424273445,1780725042000,-500.0,0.00014,2]
[424273463,1780725042000,-500.0,0.00014,2]
[424273448,1780725042000,-500.0,0.00014,2]
[424273464,1780725042000,-500.0,0.00014,2]
[424273462,1780725042000,-500.0,0.00014,2]
[424273455,1780725042000,-500.0,0.00014,2]
[424273458,1780725042000,-500.0,0.00014,2]
[424273460,1780725042000,-500.0,0.00014,2]
[424273456,1780725042000,-500.0,0.00014,2]
[424273461,1780725042000,-500.0,0.00014,2]
[424273459,1780725042000,-500.0,0.00014,2]
[424273457,1780725042000,-500.0,0.00014,2]
[424273466,1780725042000,-500.0,0.00014,2]
[424273467,1780725042000,-500.0,0.00014,2]
[424273465,1780725042000,-500.0,0.00014,2]
[424273468,1780725042000,-500.0,0.00014,2]
[424273443,1780725042000,-500.0,0.00014,2]
[424273454,1780725042000,-500.0,0.00014,2]
[424273441,1780725042000,-500.0,0.00014,2]
[424273469,1780725042000,-500.0,0.00014,2]
[424273437,1780725042000,-500.0,0.00014,2]
[424273413,1780725042000,-3005.0,0.00013745,5]
[424273419,1780725042000,-200.0,0.00013981,2]
[424273418,1780725042000,-166.66,0.00013973,2]
[424273414,1780725042000,-166.66,0.00013836,2]
[424273417,1780725042000,-9005.67000145,0.00013966,2]
[424273416,1780725042000,-315.0,0.000139,2]
[424273415,1780725042000,-500.0,0.0001389,2]
[424273423,1780725042000,-500.0,0.00014,2]
[424273429,1780725042000,-500.0,0.00014,2]
[424273421,1780725042000,-250.0,0.00014,2]
[424273425,1780725042000,-500.0,0.00014,2]
[424273426,1780725042000,-500.0,0.00014,2]
[424273440,1780725042000,-500.0,0.00014,2]
[424273428,1780725042000,-500.0,0.00014,2]
[424273420,1780725042000,-2608.19,0.00013999,2]
[424273427,1780725042000,-500.0,0.00014,2]
[424273424,1780725042000,-500.0,0.00014,2]
[424273430,1780725042000,-500.0,0.00014,2]
[424273432,1780725042000,-500.0,0.00014,2]
[424273431,1780725042000,-500.0,0.00014,2]
[424273433,1780725042000,-500.0,0.00014,2]
[424273434,1780725042000,-500.0,0.00014,2]
[424273436,1780725042000,-500.0,0.00014,2]
[424273439,1780725042000,-500.0,0.00014,2]
[424273435,1780725042000,-500.0,0.00014,2]
[424273438,1780725042000,-500.0,0.00014,2]
[424273422,1780725042000,-500.0,0.00014,2]
[424273475,1780725042000,-500.0,0.00014,2]
[424273522,1780725042000,-500.0,0.00014,2]
[424273473,1780725042000,-500.0,0.00014,2]
[424273509,1780725042000,-500.0,0.00014,2]
[424273511,1780725042000,-500.0,0.00014,2]
[424273504,1780725042000,-500.0,0.00014,2]
[424273512,1780725042000,-500.0,0.00014,2]
[424273502,1780725042000,-500.0,0.00014,2]
[424273515,1780725042000,-500.0,0.00014,2]
[424273516,1780725042000,-500.0,0.00014,2]
[424273506,1780725042000,-500.0,0.00014,2]
[424273508,1780725042000,-500.0,0.00014,2]
[424273507,1780725042000,-500.0,0.00014,2]
[424273510,1780725042000,-500.0,0.00014,2]
[424273518,1780725042000,-500.0,0.00014,2]
[424273513,1780725042000,-500.0,0.00014,2]
[424273517,1780725042000,-500.0,0.00014,2]
[424273524,1780725042000,-500.0,0.00014,2]
[424273528,1780725042000,-500.0,0.00014,2]
[424273529,1780725042000,-500.0,0.00014,2]
[424273526,1780725042000,-500.0,0.00014,2]
[424273519,1780725042000,-500.0,0.00014,2]
[424273527,1780725042000,-500.0,0.00014,2]
[424273523,1780725042000,-500.0,0.00014,2]
[424273520,1780725042000,-500.0,0.00014,2]
[424273525,1780725042000,-500.0,0.00014,2]
[424273530,1780725042000,-171.25,0.00014,2]
[424273532,1780725042000,-500.0,0.00014,2]
[424273531,1780725042000,-500.0,0.00014,2]
[424273521,1780725042000,-500.0,0.00014,2]
[424273490,1780725042000,-500.0,0.00014,2]
[424273470,1780725042000,-500.0,0.00014,2]
[424273495,1780725042000,-500.0,0.00014,2]
[424273471,1780725042000,-500.0,0.00014,2]
[424273474,1780725042000,-500.0,0.00014,2]
[424273476,1780725042000,-500.0,0.00014,2]
[424273472,1780725042000,-500.0,0.00014,2]
[424273477,1780725042000,-500.0,0.00014,2]
[424273478,1780725042000,-500.0,0.00014,2]
[424273479,1780725042000,-500.0,0.00014,2]
[424273483,1780725042000,-500.0,0.00014,2]
[424273487,1780725042000,-500.0,0.00014,2]
[424273489,1780725042000,-500.0,0.00014,2]
[424273481,1780725042000,-500.0,0.00014,2]
[424273486,1780725042000,-500.0,0.00014,2]
[424273480,1780725042000,-500.0,0.00014,2]
[424273501,1780725042000,-500.0,0.00014,2]
[424273485,1780725042000,-500.0,0.00014,2]
[424273482,1780725042000,-500.0,0.00014,2]
[424273500,1780725042000,-500.0,0.00014,2]
[424273494,1780725042000,-500.0,0.00014,2]
[424273496,1780725042000,-500.0,0.00014,2]
[424273499,1780725042000,-500.0,0.00014,2]
[424273492,1780725042000,-500.0,0.00014,2]
[424273497,1780725042000,-500.0,0.00014,2]
[424273491,1780725042000,-500.0,0.00014,2]
[424273493,1780725042000,-500.0,0.00014,2]
[424273484,1780725042000,-500.0,0.00014,2]
[424273488,1780725042000,-500.0,0.00014,2]
[424273498,1780725042000,-500.0,0.00014,2]
[424273570,1780725043000,-309.0,0.000142,2]
[424273575,1780725043000,-1548.0,0.00014212,2]
[424273579,1780725043000,-152.0,0.00014212,2]
[424273569,1780725043000,-887.0,0.000142,2]
[424273572,1780725043000,-1548.0,0.00014212,2]
[424273560,1780725043000,-500.0,0.00014,2]
[424273568,1780725043000,-1555.5,0.00014176,2]
[424273559,1780725043000,-500.0,0.00014,2]
[424273561,1780725043000,-412.17,0.00014,2]
[424273558,1780725043000,-500.0,0.00014,2]
[424273573,1780725043000,-1548.0,0.00014212,2]
[424273571,1780725043000,-1000.0,0.000142,2]
[424273576,1780725043000,-1548.0,0.00014212,2]
[424273583,1780725043000,-500.0,0.00014219,2]
[424273578,1780725043000,-1548.0,0.00014212,2]
[424273581,1780725043000,-151.0,0.00014212,2]
[424273586,1780725043000,-169.65,0.0001422,2]
[424273591,1780725043000,-3716.01,0.00014497,2]
[424273582,1780725043000,-151.0,0.00014212,2]
[424273580,1780725043000,-151.0,0.00014212,2]
[424273584,1780725043000,-169.65,0.0001422,2]
[424273585,1780725043000,-169.65,0.0001422,2]
[424273587,1780725043000,-166.66,0.00014247,2]
[424273590,1780725043000,-231.86,0.00014446,2]
[424273588,1780725043000,-200.0,0.00014374,2]
[424273557,1780725043000,-500.0,0.00014,2]
[424273577,1780725043000,-1548.0,0.00014212,2]
[424273564,1780725043000,-2000.0,0.000141,2]
[424273547,1780725043000,-500.0,0.00014,2]
[424273554,1780725043000,-500.0,0.00014,2]
[424273538,1780725043000,-500.0,0.00014,2]
[424273539,1780725043000,-500.0,0.00014,2]
[424273540,1780725043000,-500.0,0.00014,2]
[424273537,1780725043000,-500.0,0.00014,2]
[424273534,1780725043000,-500.0,0.00014,2]
[424273533,1780725043000,-500.0,0.00014,2]
[424273536,1780725043000,-500.0,0.00014,2]
[424273535,1780725043000,-500.0,0.00014,2]
[424273541,1780725043000,-500.0,0.00014,2]
[424273543,1780725043000,-500.0,0.00014,2]
[424273544,1780725043000,-500.0,0.00014,2]
[424273551,1780725043000,-500.0,0.00014,2]
[424273545,1780725043000,-500.0,0.00014,2]
[424273550,1780725043000,-500.0,0.00014,2]
[424273542,1780725043000,-500.0,0.00014,2]
[424273589,1780725043000,-166.66,0.00014384,2]
[424273548,1780725043000,-500.0,0.00014,2]
[424273549,1780725043000,-500.0,0.00014,2]
[424273546,1780725043000,-500.0,0.00014,2]
[424273552,1780725043000,-500.0,0.00014,2]
[424273553,1780725043000,-500.0,0.00014,2]
[424273555,1780725043000,-500.0,0.00014,2]
[424273562,1780725043000,-500.0,0.00014,2]
[424273566,1780725043000,-16979.19806553,0.00014174,2]
[424273563,1780725043000,-183.0,0.00014015,2]
[424273567,1780725043000,-1068.11,0.00014176,2]
[424273556,1780725043000,-500.0,0.00014,2]
[424273565,1780725043000,-166.66,0.0001411,2]
[424273592,1780725043000,-10000.0,0.00014548,2]
[424273574,1780725043000,-1548.0,0.00014212,2]
[424273594,1780725043000,-1548.0,0.00014572,2]
[424273624,1780725043000,-500.0,0.00014726,2]
[424273622,1780725043000,-500.0,0.00014726,2]
[424273623,1780725043000,-500.0,0.00014726,2]
[424273630,1780725043000,-250.0,0.00014742,2]
[424273633,1780725043000,-151.0,0.0001477,2]
[424273631,1780725043000,-381.0,0.00014751,2]
[424273629,1780725043000,-381.0,0.00014733,2]
[424273632,1780725043000,-151.0,0.0001477,2]
[424273634,1780725043000,-2608.19,0.00014772,2]
[424273635,1780725043000,-2608.19,0.00014772,2]
[424273639,1780725043000,-1738.76,0.000148,2]
[424273637,1780725043000,-2608.19,0.00014772,2]
[424273636,1780725043000,-2608.19,0.00014772,2]
[424273621,1780725043000,-500.0,0.00014726,2]
[424273638,1780725043000,-381.0,0.00014788,2]
[424273647,1780725043000,-1052.0267,0.0001485,2]
[424273649,1780725043000,-190.62685279,0.00014859,2]
[424273640,1780725043000,-1738.76,0.000148,2]
[424273648,1780725043000,-1052.0267,0.0001485,2]
[424273650,1780725043000,-200.0,0.00014879,2]
[424273642,1780725043000,-1738.76,0.000148,2]
[424273643,1780725043000,-1738.78,0.000148,2]
[424273646,1780725043000,-1052.0267,0.0001485,2]
[424273644,1780725043000,-6186.7976762,0.00014849,2]
[424273645,1780725043000,-8341.86759205,0.0001485,2]
[424273651,1780725043000,-1548.0,0.00014886,2]
[424273593,1780725043000,-1548.0,0.00014572,2]
[424273652,1780725043000,-1548.0,0.00014886,2]
[424273641,1780725043000,-1738.76,0.000148,2]
[424273620,1780725043000,-1400.0,0.00014726,2]
[424273653,1780725043000,-1548.0,0.00014886,2]
[424273628,1780725043000,-405.0,0.00014733,2]
[424273595,1780725043000,-1548.0,0.00014572,2]
[424273596,1780725043000,-1548.0,0.00014572,2]
[424273601,1780725043000,-200.0,0.00014627,2]
[424273600,1780725043000,-10000.0,0.0001462,2]
[424273599,1780725043000,-151.0,0.00014572,2]
[424273597,1780725043000,-154.55676498,0.00014572,2]
[424273598,1780725043000,-151.0,0.00014572,2]
[424273602,1780725043000,-1921.75634917,0.0001463,2]
[424273619,1780725043000,-500.0,0.00014726,2]
[424273604,1780725043000,-1548.0,0.00014655,2]
[424273605,1780725043000,-1548.0,0.00014655,2]
[424273606,1780725043000,-1562.23345922,0.00014655,2]
[424273616,1780725043000,-1107.63007,0.00014724,2]
[424273608,1780725043000,-166.18481118,0.00014655,2]
[424273603,1780725043000,-1548.0,0.00014655,2]
[424273610,1780725043000,-1777.0,0.00014658,2]
[424273625,1780725043000,-500.0,0.00014726,2]
[424273626,1780725043000,-500.0,0.00014726,2]
[424273627,1780725043000,-621.009,0.00014726,2]
[424273618,1780725043000,-3202.25341197,0.00014725,2]
[424273607,1780725043000,-155.50929057,0.00014655,2]
[424273617,1780725043000,-1613.0535,0.00014724,2]
[424273614,1780725043000,-2000.0,0.000147,2]
[424273609,1780725043000,-500.0,0.00014657,2]
[424273612,1780725043000,-342.26167967,0.00014695,2]
[424273613,1780725043000,-19437.25722244,0.000147,2]
[424273615,1780725043000,-342.14338402,0.00014701,2]
[424273611,1780725043000,-190.33571331,0.00014695,2]
[424273692,1780725044000,-500.0,0.00014999,2]
[424273690,1780725044000,-500.0,0.00014999,2]
[424273693,1780725044000,-500.0,0.00014999,2]
[424273691,1780725044000,-500.0,0.00014999,2]
[424273687,1780725044000,-500.0,0.00014999,2]
[424273688,1780725044000,-500.0,0.00014999,2]
[424273686,1780725044000,-500.0,0.00014999,2]
[424273697,1780725044000,-500.0,0.00014999,2]
[424273695,1780725044000,-500.0,0.00014999,2]
[424273698,1780725044000,-500.0,0.00014999,2]
[424273689,1780725044000,-500.0,0.00014999,2]
[424273694,1780725044000,-500.0,0.00014999,2]
[424273710,1780725044000,-500.0,0.00014999,2]
[424273701,1780725044000,-500.0,0.00014999,2]
[424273699,1780725044000,-500.0,0.00014999,2]
[424273702,1780725044000,-500.0,0.00014999,2]
[424273700,1780725044000,-500.0,0.00014999,2]
[424273712,1780725044000,-500.0,0.00014999,2]
[424273704,1780725044000,-500.0,0.00014999,2]
[424273706,1780725044000,-500.0,0.00014999,2]
[424273709,1780725044000,-500.0,0.00014999,2]
[424273707,1780725044000,-500.0,0.00014999,2]
[424273705,1780725044000,-500.0,0.00014999,2]
[424273708,1780725044000,-500.0,0.00014999,2]
[424273696,1780725044000,-500.0,0.00014999,2]
[424273711,1780725044000,-500.0,0.00014999,2]
[424273703,1780725044000,-500.0,0.00014999,2]
[424273685,1780725044000,-500.0,0.00014999,2]
[424273671,1780725044000,-151.0,0.00014997,2]
[424273681,1780725044000,-2608.34668627,0.00014999,2]
[424273723,1780725044000,-500.0,0.00014999,2]
[424273658,1780725044000,-300.0,0.000149,3]
[424273656,1780725044000,-188.87098497,0.000149,2]
[424273661,1780725044000,-9005.67000145,0.000149,2]
[424273657,1780725044000,-300.6531351,0.000149,2]
[424273660,1780725044000,-16979.19806553,0.000149,2]
[424273655,1780725044000,-405.0,0.00014896,2]
[424273659,1780725044000,-12441.01536247,0.000149,3]
[424273662,1780725044000,-176.00672803,0.000149,2]
[424273663,1780725044000,-3042.90848229,0.000149,2]
[424273664,1780725044000,-350.0,0.00014912,2]
[424273665,1780725044000,-10010.67071206,0.00014913,2]
[424273682,1780725044000,-500.0,0.00014999,2]
[424273666,1780725044000,-10000.0,0.00014918,2]
[424273667,1780725044000,-151.0,0.00014918,2]
[424273670,1780725044000,-170.18226876,0.0001499,2]
[424273669,1780725044000,-170.18226876,0.0001499,2]
[424273672,1780725044000,-1452.34008586,0.00014999,2]
[424273677,1780725044000,-2608.19,0.00014999,2]
[424273674,1780725044000,-2608.19,0.00014999,2]
[424273676,1780725044000,-2608.19,0.00014999,2]
[424273684,1780725044000,-500.0,0.00014999,2]
[424273678,1780725044000,-2608.19,0.00014999,2]
[424273680,1780725044000,-2608.19,0.00014999,2]
[424273683,1780725044000,-500.0,0.00014999,2]
[424273679,1780725044000,-2608.19,0.00014999,2]
[424273668,1780725044000,-190.62685279,0.0001493,2]
[424273725,1780725044000,-500.0,0.00014999,2]
[424273654,1780725044000,-151.0,0.00014886,2]
[424273713,1780725044000,-500.0,0.00014999,2]
[424273743,1780725044000,-500.0,0.00014999,2]
[424273745,1780725044000,-500.0,0.00014999,2]
[424273740,1780725044000,-500.0,0.00014999,2]
[424273751,1780725044000,-500.0,0.00014999,2]
[424273760,1780725044000,-500.0,0.00014999,2]
[424273755,1780725044000,-500.0,0.00014999,2]
[424273754,1780725044000,-500.0,0.00014999,2]
[424273753,1780725044000,-500.0,0.00014999,2]
[424273757,1780725044000,-500.0,0.00014999,2]
[424273756,1780725044000,-500.0,0.00014999,2]
[424273752,1780725044000,-500.0,0.00014999,2]
[424273758,1780725044000,-500.0,0.00014999,2]
[424273761,1780725044000,-500.0,0.00014999,2]
[424273759,1780725044000,-500.0,0.00014999,2]
[424273764,1780725044000,-500.0,0.00014999,2]
[424273763,1780725044000,-500.0,0.00014999,2]
[424273762,1780725044000,-500.0,0.00014999,2]
[424273766,1780725044000,-500.0,0.00014999,2]
[424273765,1780725044000,-500.0,0.00014999,2]
[424273769,1780725044000,-500.0,0.00014999,2]
[424273767,1780725044000,-500.0,0.00014999,2]
[424273768,1780725044000,-500.0,0.00014999,2]
[424273771,1780725044000,-428.77736464,0.00015,2]
[424273772,1780725044000,-351.7515791,0.00015,2]
[424273770,1780725044000,-944430.81802478,0.00015,2]
[424273773,1780725044000,-272889.10892455,0.00015,2]
[424273724,1780725044000,-250.0,0.00014999,2]
[424273741,1780725044000,-500.0,0.00014999,2]
[424273744,1780725044000,-500.0,0.00014999,2]
[424273673,1780725044000,-2608.19,0.00014999,2]
[424273739,1780725044000,-500.0,0.00014999,2]
[424273714,1780725044000,-500.0,0.00014999,2]
[424273718,1780725044000,-500.0,0.00014999,2]
[424273717,1780725044000,-500.0,0.00014999,2]
[424273722,1780725044000,-500.0,0.00014999,2]
[424273721,1780725044000,-500.0,0.00014999,2]
[424273716,1780725044000,-500.0,0.00014999,2]
[424273719,1780725044000,-500.0,0.00014999,2]
[424273726,1780725044000,-500.0,0.00014999,2]
[424273727,1780725044000,-500.0,0.00014999,2]
[424273728,1780725044000,-500.0,0.00014999,2]
[424273729,1780725044000,-500.0,0.00014999,2]
[424273730,1780725044000,-500.0,0.00014999,2]
[424273734,1780725044000,-500.0,0.00014999,2]
[424273720,1780725044000,-500.0,0.00014999,2]
[424273736,1780725044000,-1000.0,0.00014999,2]
[424273732,1780725044000,-500.0,0.00014999,2]
[424273750,1780725044000,-500.0,0.00014999,2]
[424273749,1780725044000,-500.0,0.00014999,2]
[424273738,1780725044000,-1000.0,0.00014999,2]
[424273748,1780725044000,-500.0,0.00014999,2]
[424273715,1780725044000,-500.0,0.00014999,2]
[424273742,1780725044000,-500.0,0.00014999,2]
[424273747,1780725044000,-500.0,0.00014999,2]
[424273737,1780725044000,-500.0,0.00014999,2]
[424273735,1780725044000,-500.0,0.00014999,2]
[424273746,1780725044000,-500.0,0.00014999,2]
[424273731,1780725044000,-500.0,0.00014999,2]
[424273733,1780725044000,-500.0,0.00014999,2]
[424273779,1780725046000,-901.53524335,0.00011099,2]
[424273778,1780725046000,-2643.95841335,0.00011099,2]
[424273774,1780725046000,-2121.80929683,0.00015,2]
[424273775,1780725046000,-510.96785374,0.00015,2]
[424273784,1780725065000,2000.0,0.00030137,120]
[424273785,1780725130000,500.0,7.904e-05,2]
[424273786,1780725168000,451.42,0.00030107,120]
[424273787,1780725186000,170.54079912,0.00010274,7]
[424273788,1780725603000,-151.0,0.00010821,7]
[424273789,1780725605000,-55.38,0.00010821,7]
[424273790,1780725639000,1800.0,0.00030137,120]
[424273791,1780725645000,158.55,0.00030082,120]
[424273795,1780725649000,-232.50614915,8.644e-05,2]
[424273793,1780725649000,-295.35405996,8.232e-05,2]
[424273794,1780725649000,-214.0,8.321e-05,2]
[424273792,1780725649000,-193.7453,8.232e-05,2]
[424273796,1780725651000,1800.0,0.00030137,120]
[424273797,1780725698000,408.0,0.0003,120]
[424273798,1780725719000,1000.0,0.00030137,120]
[424273799,1780725733000,1000.0,0.00030137,120]
[424273800,1780725762000,60000.0,0.0003013,120]
[424273802,1780725765000,-241.04209363,9.055e-05,2]
[424273801,1780725765000,-233.9029513,9.055e-05,2]
[424273803,1780725798000,169.11538213,8.232e-05,7]
[424273806,1780726140000,2000.0,0.00030136,120]
[424273816,1780726200000,1500.0,0.00030137,120]
[424273845,1780726232000,-500.0,0.00010608,2]
[424273851,1780726232000,-500.0,0.00010608,2]
[424273848,1780726232000,-500.0,0.00010608,2]
[424273849,1780726232000,-500.0,0.00010608,2]
[424273853,1780726232000,-500.0,0.00010608,2]
[424273850,1780726232000,-500.0,0.00010608,2]
[424273819,1780726232000,-200.0,9.811e-05,2]
[424273855,1780726232000,-500.0,0.00010608,2]
[424273872,1780726232000,-500.0,0.00010608,2]
[424273859,1780726232000,-500.0,0.00010608,2]
[424273868,1780726232000,-500.0,0.00010608,2]
[424273821,1780726232000,-1981.65,9.816e-05,2]
[424273866,1780726232000,-500.0,0.00010608,2]
[424273870,1780726232000,-500.0,0.00010608,2]
[424273857,1780726232000,-500.0,0.00010608,2]
[424273860,1780726232000,-500.0,0.00010608,2]
[424273864,1780726232000,-500.0,0.00010608,2]
[424273861,1780726232000,-175.08991361,0.00010608,2]
[424273863,1780726232000,-500.0,0.00010608,2]
[424273862,1780726232000,-500.0,0.00010608,2]
[424273873,1780726232000,-500.0,0.00010608,2]
[424273875,1780726232000,-500.0,0.00010608,2]
[424273877,1780726232000,-500.0,0.00010608,2]
[424273844,1780726232000,-500.0,0.00010608,2]
[424273854,1780726232000,-500.0,0.00010608,2]
[424273847,1780726232000,-500.0,0.00010608,2]
[424273843,1780726232000,-500.0,0.00010608,2]
[424273820,1780726232000,-227.85602617,9.813e-05,2]
[424273822,1780726232000,-170.52,9.836e-05,2]
[424273824,1780726232000,-153.28053933,9.886e-05,2]
[424273826,1780726232000,-2000.0,0.00010216,2]
[424273825,1780726232000,-250.0,0.00010042,2]
[424273827,1780726232000,-166.66,0.0001024,2]
[424273828,1780726232000,-225.67553519,0.00010298,2]
[424273829,1780726232000,-257.26866845,0.00010299,2]
[424273823,1780726232000,-200.0,9.886e-05,2]
[424273833,1780726232000,-1155.0,0.00010467,2]
[424273846,1780726232000,-500.0,0.00010608,2]
[424273830,1780726232000,-300.0,0.00010299,2]
[424273831,1780726232000,-150.99,0.00010299,2]
[424273835,1780726232000,-7541.38963134,0.00010468,2]
[424273834,1780726232000,-1000.0,0.00010468,2]
[424273840,1780726232000,-500.0,0.00010608,2]
[424273842,1780726232000,-500.0,0.00010608,2]
[424273874,1780726232000,-500.0,0.00010608,2]
[424273839,1780726232000,-500.0,0.00010608,2]
[424273837,1780726232000,-209.37,0.00010468,2]
[424273841,1780726232000,-500.0,0.00010608,2]
[424273838,1780726232000,-166.66,0.00010578,2]
[424273832,1780726232000,-1856.89,0.00010463,2]
[424273886,1780726232000,-150.0,0.00010625,2]
[424273836,1780726232000,-2458.60036866,0.00010468,2]
[424273878,1780726232000,-500.0,0.00010608,2]
[424273913,1780726232000,-500.0,0.00010898,2]
[424273911,1780726232000,-500.0,0.00010898,2]
[424273902,1780726232000,-250.0,0.00010792,2]
[424273912,1780726232000,-500.0,0.00010898,2]
[424273925,1780726232000,-166.66,0.00010916,2]
[424273915,1780726232000,-276.09654536,0.00010898,2]
[424273924,1780726232000,-1293.07997544,0.00010899,2]
[424273918,1780726232000,-2500.0,0.00010899,2]
[424273919,1780726232000,-4000.0,0.00010899,2]
[424273926,1780726232000,-150.0,0.00010959,2]
[424273914,1780726232000,-349.33600024,0.00010898,2]
[424273916,1780726232000,-272.70589811,0.00010898,2]
[424273920,1780726232000,-4178.8879,0.00010899,2]
[424273927,1780726232000,-170.18226876,0.00010989,2]
[424273922,1780726232000,-176.00672803,0.00010899,2]
[424273917,1780726232000,-83072.0466,0.00010899,2]
[424273921,1780726232000,-1544.11891293,0.00010899,2]
[424273923,1780726232000,-3216.9178579,0.00010899,2]
[424273928,1780726232000,-300.54393102,0.00010995,2]
[424273931,1780726232000,-129985.51461734,0.00010999,2]
[424273929,1780726232000,-250.0,0.00010995,2]
[424273930,1780726232000,-846943.20200255,0.00010999,2]
[424273883,1780726232000,-150.0,0.00010624,2]
[424273909,1780726232000,-500.0,0.00010898,2]
[424273906,1780726232000,-420.41715652,0.00010898,2]
[424273852,1780726232000,-500.0,0.00010608,2]
[424273908,1780726232000,-500.0,0.00010898,2]
[424273881,1780726232000,-2545.0,0.00010609,2]
[424273880,1780726232000,-250.0,0.00010608,2]
[424273885,1780726232000,-150.0,0.00010625,2]
[424273882,1780726232000,-1000.0,0.00010624,2]
[424273884,1780726232000,-281.40949776,0.00010625,2]
[424273887,1780726232000,-500.0,0.00010625,2]
[424273899,1780726232000,-1000.0,0.00010694,2]
[424273889,1780726232000,-500.0,0.00010625,2]
[424273900,1780726232000,-430.0,0.00010695,2]
[424273890,1780726232000,-500.0,0.00010625,2]
[424273888,1780726232000,-150.0,0.00010625,2]
[424273892,1780726232000,-500.0,0.00010625,2]
[424273910,1780726232000,-284.33991916,0.00010898,2]
[424273894,1780726232000,-500.0,0.00010625,2]
[424273895,1780726232000,-359.92465112,0.00010625,2]
[424273896,1780726232000,-380.14865708,0.00010643,2]
[424273891,1780726232000,-150.0,0.00010625,2]
[424273893,1780726232000,-261.38797832,0.00010625,2]
[424273898,1780726232000,-389.162,0.00010693,2]
[424273901,1780726232000,-7864.79,0.00010695,2]
[424273903,1780726232000,-8257.34,0.00010821,2]
[424273905,1780726232000,-500.0,0.00010898,2]
[424273904,1780726232000,-250.0,0.00010874,2]
[424273897,1780726232000,-7935.887,0.00010693,2]